fUSD/lending_fUSD_20240708
["ID","MTS","AMOUNT","RATE_DAILY","PERIOD"]
[331517679,1720446036085,-2191.17,0.00055342,120]
[331517680,1720446036187,-4023.3,0.00055342,120]
[331517681,1720446036290,-1885.58,0.00055342,120]
[331517682,1720446036395,-5732.02,0.00055342,120]
[331517683,1720446036508,-20208.54,0.00055342,120]
[331517684,1720446036617,-3285.94,0.00055342,120]
[331517685,1720446036722,-843.34,0.00055342,120]
[331517686,1720446036822,-3467.68,0.00055342,120]
[331517687,1720446036924,-4518.2,0.00055342,120]
[331517688,1720446037024,-579.73,0.00055342,120]
[331517689,1720446037123,-7921.19,0.00055342,120]
[331517690,1720446037227,-2995.09,0.00055342,120]
[331517691,1720446037336,-521.56,0.00055342,120]
[331517692,1720446037438,-4816.6,0.00055342,120]
[331517693,1720446037543,-5616.29,0.00055342,120]
[331517694,1720446037647,-4754.74,0.00055342,120]
[331517695,1720446037748,-2818.99,0.00055342,120]
[331517696,1720446037847,-2101.17,0.00055342,120]
[331517697,1720446037950,-7384.37,0.00055342,120]
[331517698,1720446038052,-500.0,0.00055342,120]
[331517699,1720446038155,-13611.45,0.00055342,120]
[331517700,1720446038265,-965.22,0.00055342,120]
[331517701,1720446038481,-547.56,0.00055342,120]
[331517702,1720446038594,-583.78,0.00055342,120]
[331517703,1720446038705,-3854.26,0.00055342,120]
[331517704,1720446038812,-10162.8,0.00055342,120]
[331517705,1720446038915,-565.66937563,0.00055342,120]
[331517706,1720446039026,-938.43,0.00055342,120]
[331517707,1720446039145,-1124.37,0.00055342,120]
[331517708,1720446039267,-4983.01,0.00055342,120]
[331517709,1720446039391,-5118.07,0.00055342,120]
[331517710,1720446039516,-2432.5,0.00055342,120]
[331517711,1720446039643,-5565.77,0.00055342,120]
[331517712,1720446039759,-500.0,0.00055342,120]
[331517713,1720446039874,-2686.57,0.00055342,120]
[331517714,1720446039987,-524.96,0.00055342,120]
[331517715,1720446040105,-1454.12,0.00055342,120]
[331517716,1720446040216,-5036.27,0.00055342,120]
[331517717,1720446040334,-1067.33,0.00055342,120]
[331517718,1720446040445,-1767.38,0.00055342,120]
[331517719,1720446040559,-5646.1,0.00055342,120]
[331517720,1720446040672,-2304.81,0.00055342,120]
[331517721,1720446040786,-4701.07,0.00055342,120]
[331517722,1720446040899,-9047.3,0.00055342,120]
[331517723,1720446041011,-4919.53,0.00055342,120]
[331517724,1720446041126,-1659.74,0.00055342,120]
[331517725,1720446041238,-1525.81,0.00055342,120]
[331517726,1720446041352,-2133.05,0.00055342,120]
[331517727,1720446041463,-7680.57,0.00055342,120]
[331517728,1720446041577,-4421.49,0.00055342,120]
[331517729,1720446041684,-1759.96,0.00055342,120]
[331517730,1720446041795,-3903.92,0.00055342,120]
[331517731,1720446041906,-500.0,0.00055342,120]
[331517732,1720446042024,-1631.9,0.00055342,120]
[331517733,1720446042146,-3833.49,0.00055342,120]
[331517734,1720446042258,-5951.51,0.00055342,120]
[331517735,1720446042364,-5146.59,0.00055342,120]
[331517736,1720446042470,-6347.68,0.00055342,120]
[331517737,1720446042570,-2176.54,0.00055342,120]
[331517738,1720446042669,-1088.69,0.00055342,120]
[331517739,1720446042765,-23579.31,0.00055342,120]
[331517740,1720446042869,-500.0,0.00055342,120]
[331517741,1720446042969,-3966.4,0.00055342,120]
[331517742,1720446043069,-2068.28,0.00055342,120]
[331517743,1720446043171,-2578.3,0.00055342,120]
[331517744,1720446043280,-3921.63,0.00055342,120]
[331517745,1720446043395,-58243.57,0.00055342,120]
[331517746,1720446043504,-508.44,0.00055342,120]
[331517747,1720446043609,-627.12,0.00055342,120]
[331517748,1720446043711,-24232.54,0.00055342,120]
[331517749,1720446043815,-552.36,0.00055342,120]
[331517750,1720446043919,-5320.57,0.00055342,120]
[331517751,1720446044029,-6752.46,0.00055342,120]
[331517752,1720446044142,-623.17,0.00055342,120]
[331517753,1720446044258,-695.92,0.00055342,120]
[331517754,1720446044377,-2080.87,0.00055342,120]
[331517755,1720446044490,-6849.11,0.00055342,120]
[331517756,1720446044596,-1687.12,0.00055342,120]
[331517757,1720446044699,-1101.67,0.00055342,120]
[331517758,1720446044805,-741.08,0.00055342,120]
[331517759,1720446044910,-6100.12,0.00055342,120]
[331517760,1720446045019,-1353.36,0.00055342,120]
[331517761,1720446045123,-6271.45,0.00055342,120]
[331517762,1720446045224,-2621.09,0.00055342,120]
[331517763,1720446045328,-2109.31,0.00055342,120]
[331517764,1720446045430,-12321.64,0.00055342,120]
[331517765,1720446045531,-538.98,0.00055342,120]
[331517766,1720446045632,-5668.6,0.00055342,120]
[331517767,1720446045733,-6141.18,0.00055342,120]
[331517768,1720446045832,-639.8,0.00055342,120]
[331517769,1720446045933,-1783.66,0.00055342,120]
[331517770,1720446046039,-768.98,0.00055342,120]
[331517771,1720446046141,-1148.58,0.00055342,120]
[331517772,1720446046246,-1046.64,0.00055342,120]
[331517773,1720446046352,-500.0,0.00055342,120]
[331517774,1720446046458,-2383.64,0.00055342,120]
[331517775,1720446046560,-1380.83,0.00055342,120]
[331517776,1720446046661,-2726.39,0.00055342,120]
[331517777,1720446046762,-1348.55,0.00055342,120]
[331517778,1720446046868,-646.48,0.00055342,120]
[331517779,1720446046974,-5858.28,0.00055342,120]
[331517780,1720446047074,-3087.04,0.00055342,120]
[331517781,1720446047175,-768.16,0.00055342,120]
[331517782,1720446047280,-1098.42,0.00055342,120]
[331517783,1720446047384,-1151.32,0.00055342,120]
[331517784,1720446047485,-28264.79,0.00055342,120]
[331517785,1720446047586,-1188.45,0.00055342,120]
[331517786,1720446047688,-3804.3,0.00055342,120]
[331517787,1720446047789,-634.13,0.00055342,120]
[331517788,1720446047885,-1074.63,0.00055342,120]
[331517789,1720446047985,-972.69,0.00055342,120]
[331517790,1720446048298,-1971.31,0.00055342,120]
[331517791,1720446048418,-5641.11,0.00055342,120]
[331517792,1720446048528,-652.19,0.00055342,120]
[331517793,1720446048636,-1216.89,0.00055342,120]
[331517794,1720446048738,-1765.23,0.00055342,120]
[331517795,1720446048840,-5055.86,0.00055342,120]
[331517796,1720446048944,-711.2,0.00055342,120]
[331517797,1720446049052,-2570.12,0.00055342,120]
[331517798,1720446049169,-2420.66,0.00055342,120]
[331517799,1720446049291,-2264.16,0.00055342,120]
[331517800,1720446049409,-672.24,0.00055342,120]
[331517801,1720446049526,-3711.44,0.00055342,120]
[331517802,1720446049642,-3195.91,0.00055342,120]
[331517803,1720446049756,-2590.75,0.00055342,120]
[331517804,1720446049866,-822.01,0.00055342,120]
[331517805,1720446049982,-3178.37,0.00055342,120]
[331517806,1720446050085,-1501.03,0.00055342,120]
[331517807,1720446050184,-4652.58,0.00055342,120]
[331517808,1720446050281,-4176.17,0.00055342,120]
[331517809,1720446050386,-1039.34,0.00055342,120]
[331517810,1720446050484,-607.4,0.00055342,120]
[331517811,1720446050592,-517.37,0.00055342,120]
[331517812,1720446050705,-724.29,0.00055342,120]
[331517813,1720446050806,-1620.57,0.00055342,120]
[331517814,1720446050907,-1793.43,0.00055342,120]
[331517815,1720446051008,-12165.5,0.00055342,120]
[331517816,1720446051111,-976.96,0.00055342,120]
[331517817,1720446051212,-2857.78,0.00055342,120]
[331517818,1720446051309,-935.81,0.00055342,120]
[331517819,1720446051407,-794.19,0.00055342,120]
[331517820,1720446051504,-1096.71,0.00055342,120]
[331517821,1720446051605,-812.1,0.00055342,120]
[331517822,1720446051703,-2680.32,0.00055342,120]
[331517823,1720446051801,-1019.65,0.00055342,120]
[331517824,1720446051900,-7204.83,0.00055342,120]
[331517825,1720446052010,-1152.98,0.00055342,120]
[331517826,1720446052115,-2326.97,0.00055342,120]
[331517827,1720446052220,-2038.8,0.00055342,120]
[331517828,1720446052330,-1237.99,0.00055342,120]
[331517829,1720446052431,-671.15,0.00055342,120]
[331517830,1720446052536,-507.99,0.00055342,120]
[331517831,1720446052639,-943.16,0.00055342,120]
[331517832,1720446052737,-5931.18,0.00055342,120]
[331517833,1720446052839,-4626.82,0.00055342,120]
[331517834,1720446052941,-2327.97,0.00055342,120]
[331517835,1720446053044,-1802.66,0.00055342,120]
[331517836,1720446053144,-789.69,0.00055342,120]
[331517837,1720446053248,-2045.63,0.00055342,120]
[331517838,1720446053364,-2179.21,0.00055342,120]
[331517839,1720446053476,-679.68,0.00055342,120]
[331517840,1720446053587,-5851.04,0.00055342,120]
[331517841,1720446053691,-790.26,0.00055342,120]
[331517842,1720446053796,-3857.14,0.00055342,120]
[331517843,1720446053911,-918.0,0.00055342,120]
[331517844,1720446054019,-1071.27,0.00055342,120]
[331517845,1720446054170,-613.25044276,0.00055342,120]
[331517846,1720446054290,-971.7,0.00055342,120]
[331517847,1720446054401,-1080.21,0.00055342,120]
[331517848,1720446054516,-9335.91,0.00055342,120]
[331517849,1720446054630,-1237.8,0.00055342,120]
[331517850,1720446054734,-4880.04,0.00055342,120]
[331517851,1720446054844,-836.04,0.00055342,120]
[331517852,1720446054956,-2472.65,0.00055342,120]
[331517853,1720446055062,-1021.84,0.00055342,120]
[331517854,1720446055166,-550.11,0.00055342,120]
[331517855,1720446055272,-166.3,0.00055342,120]
[331517856,1720446055379,-1033.51,0.00055342,120]
[331517857,1720446055486,-820.16,0.00055342,120]
[331517858,1720446055596,-1695.51,0.00055342,120]
[331517859,1720446055706,-3132.94,0.00055342,120]
[331517860,1720446055816,-1913.66,0.00055342,120]
[331517861,1720446055932,-4157.78,0.00055342,120]
[331517862,1720446056086,-511.6,0.00055342,120]
[331517863,1720446056187,-652.08,0.00055342,120]
[331517864,1720446056296,-1698.07,0.00055342,120]
[331517865,1720446056402,-637.31,0.00055342,120]
[331517866,1720446056505,-572.94,0.00055342,120]
[331517867,1720446056605,-3335.79,0.00055342,120]
[331517868,1720446056706,-1910.14,0.00055342,120]
[331517869,1720446056805,-694.53,0.00055342,120]
[331517870,1720446056905,-1154.16,0.00055342,120]
[331517871,1720446057007,-2108.8,0.00055342,120]
[331517872,1720446057107,-1564.34,0.00055342,120]
[331517873,1720446057207,-3033.38,0.00055342,120]
[331517874,1720446057310,-2059.4,0.00055342,120]
[331517875,1720446057409,-989.58,0.00055342,120]
[331517876,1720446057512,-2399.84,0.00055342,120]
[331517877,1720446057612,-447.26569068,0.00055342,120]
[331517878,1720446057712,-1672.29,0.00055342,120]
[331517879,1720446057813,-1604.31,0.00055342,120]
[331517880,1720446057916,-363.2109369,0.00055342,120]
[331517881,1720446058020,-2417.35,0.00055342,120]
[331517882,1720446058120,-1416.43,0.00055342,120]
[331517883,1720446058217,-691.6,0.00055342,120]
[331517884,1720446058326,-972.54,0.00055342,120]
[331517885,1720446058434,-1198.2,0.00055342,120]
[331517886,1720446058545,-992.98,0.00055342,120]
[331517887,1720446058649,-542.92,0.00055342,120]
[331517888,1720446058757,-1035.8,0.00055342,120]
[331517889,1720446058860,-3821.85,0.00055342,120]
[331517890,1720446058966,-971.56,0.00055342,120]
[331517891,1720446059076,-587.73,0.00055342,120]
[331517892,1720446059186,-1317.09,0.00055342,120]
[331517893,1720446059299,-1389.08,0.00055342,120]
[331517894,1720446059414,-867.82,0.00055342,120]
[331517895,1720446059528,-1639.49,0.00055342,120]
[331517896,1720446059635,-615.39,0.00055342,120]
[331517897,1720446059738,-2430.97,0.00055342,120]
[331517898,1720446059839,-2066.55,0.00055342,120]
[331517899,1720446059945,-921.41,0.00055342,120]
[331517900,1720446060043,-548.85,0.00055342,120]
[331517901,1720446060149,-1045.8,0.00055342,120]
[331517902,1720446060279,-2785.91,0.00055342,120]
[331517903,1720446060388,-3346.99,0.00055342,120]
[331517904,1720446060500,-613.69,0.00055342,120]
[331517905,1720446060611,-2884.68,0.00055342,120]
[331517906,1720446060712,-1223.29,0.00055342,120]
[331517907,1720446060809,-521.67,0.00055342,120]
[331517908,1720446060903,-1430.22,0.00055342,120]
[331517909,1720446060998,-611.61,0.00055342,120]
[331517910,1720446061096,-1451.36,0.00055342,120]
[331517911,1720446061195,-729.84,0.00055342,120]
[331517912,1720446061294,-919.43,0.00055342,120]
[331517913,1720446061393,-1252.38,0.00055342,120]
[331517914,1720446061489,-902.66,0.00055342,120]
[331517915,1720446061585,-1130.53,0.00055342,120]
[331517916,1720446061685,-1710.79,0.00055342,120]
[331517917,1720446061780,-1387.34,0.00055342,120]
[331517918,1720446061878,-558.45,0.00055342,120]
[331517919,1720446061980,-595.41,0.00055342,120]
[331517920,1720446062089,-801.29,0.00055342,120]
[331517921,1720446062189,-681.95,0.00055342,120]
[331517922,1720446062293,-647.19,0.00055342,120]
[331517923,1720446062398,-500.0,0.00055342,120]
[331517924,1720446062502,-920.91,0.00055342,120]
[331517925,1720446062609,-809.57,0.00055342,120]
[331517926,1720446062712,-866.07,0.00055342,120]
[331517927,1720446062811,-508.51,0.00055342,120]
[331517928,1720446062911,-1342.46,0.00055342,120]
[331517929,1720446063015,-669.08,0.00055342,120]
[331517930,1720446063110,-924.87,0.00055342,120]
[331517931,1720446063210,-1526.59,0.00055342,120]
[331517932,1720446063321,-2651.63,0.00055342,120]
[331517933,1720446063432,-455.05811613,0.00055342,120]
[331517934,1720446063543,-2744.63,0.00055342,120]
[331517935,1720446063648,-2267.0,0.00055342,120]
[331517936,1720446063751,-574.0,0.00055342,120]
[331517937,1720446063848,-775.01,0.00055342,120]
[331517938,1720446063953,-1695.04,0.00055342,120]
[331517939,1720446064057,-500.0,0.00055342,120]
[331517940,1720446064163,-1245.56,0.00055342,120]
[331517941,1720446064266,-785.15,0.00055342,120]
[331517942,1720446064371,-1245.98,0.00055342,120]
[331517943,1720446064477,-1155.34,0.00055342,120]
[331517944,1720446064583,-555.03,0.00055342,120]
[331517945,1720446064694,-803.39,0.00055342,120]
[331517946,1720446064789,-1305.54,0.00055342,120]
[331517947,1720446064886,-949.65,0.00055342,120]
[331517948,1720446064987,-1347.23,0.00055342,120]
[331517949,1720446065081,-568.39,0.00055342,120]
[331517950,1720446065183,-784.35,0.00055342,120]
[331517951,1720446065281,-796.74,0.00055342,120]
[331517952,1720446065380,-838.64,0.00055342,120]
[331517953,1720446065479,-739.18,0.00055342,120]
[331517954,1720446065575,-995.21,0.00055342,120]
[331517955,1720446065672,-1155.36,0.00055342,120]
[331517956,1720446065770,-751.81,0.00055342,120]
[331517957,1720446065872,-1142.72,0.00055342,120]
[331517958,1720446065975,-2126.32,0.00055342,120]
[331517959,1720446066073,-1163.78,0.00055342,120]
[331517960,1720446066169,-743.53,0.00055342,120]
[331517961,1720446066266,-934.66,0.00055342,120]
[331517962,1720446066361,-995.22,0.00055342,120]
[331517963,1720446066455,-784.36,0.00055342,120]
[331517964,1720446066553,-1579.18,0.00055342,120]
[331517965,1720446066650,-1658.26,0.00055342,120]
[331517966,1720446066746,-500.0,0.00055342,120]
[331517967,1720446066935,-580.63,0.00055342,120]
[331517968,1720446067040,-693.77,0.00055342,120]
[331517969,1720446067140,-633.12,0.00055342,120]
[331517970,1720446067236,-1079.99,0.00055342,120]
[331517971,1720446067330,-510.79,0.00055342,120]
[331517972,1720446067424,-534.95,0.00055342,120]
[331517973,1720446067519,-652.14,0.00055342,120]
[331517974,1720446067615,-2055.98,0.00055342,120]
[331517975,1720446067711,-808.16,0.00055342,120]
[331517976,1720446067802,-837.72,0.00055342,120]
[331517977,1720446067894,-974.55,0.00055342,120]
[331517978,1720446067990,-668.71,0.00055342,120]
[331517979,1720446068089,-918.92,0.00055342,120]
[331517980,1720446068188,-733.46,0.00055342,120]
[331517981,1720446068291,-843.38,0.00055342,120]
[331517982,1720446068400,-777.5,0.00055342,120]
[331517983,1720446068511,-852.37,0.00055342,120]
[331517984,1720446068615,-1186.97,0.00055342,120]
[331517985,1720446068714,-1241.83,0.00055342,120]
[331517986,1720446068812,-807.64,0.00055342,120]
[331517987,1720446068912,-803.38,0.00055342,120]
[331517988,1720446069020,-657.3,0.00055342,120]
[331517989,1720446069133,-1355.78,0.00055342,120]
[331517990,1720446069247,-500.0,0.00055342,120]
[331517991,1720446069364,-337.82295111,0.00055342,120]
[331517992,1720446069481,-500.0,0.00055342,120]
[331517993,1720446069588,-525.31,0.00055342,120]
[331517994,1720446069704,-682.0,0.00055342,120]
[331517995,1720446069816,-1095.38,0.00055342,120]
[331517996,1720446069924,-1081.98,0.00055342,120]
[331517997,1720446070034,-712.75,0.00055342,120]
[331517998,1720446070142,-766.48,0.00055342,120]
[331517999,1720446070241,-887.36,0.00055342,120]
[331518000,1720446070346,-989.73,0.00055342,120]
[331518001,1720446070454,-568.6,0.00055342,120]
[331518002,1720446070555,-665.12,0.00055342,120]
[331518003,1720446070659,-785.44,0.00055342,120]
[331518004,1720446070761,-2486.56,0.00055342,120]
[331518005,1720446070861,-891.8,0.00055342,120]
[331518006,1720446070973,-608.44,0.00055342,120]
[331518007,1720446071070,-705.57,0.00055342,120]
[331518008,1720446071167,-502.79,0.00055342,120]
[331518009,1720446071266,-605.18,0.00055342,120]
[331518010,1720446071362,-500.0,0.00055342,120]
[331518011,1720446071462,-712.81,0.00055342,120]
[331518012,1720446071560,-534.72,0.00055342,120]
[331518013,1720446071659,-1760.36,0.00055342,120]
[331518014,1720446071756,-800.08,0.00055342,120]
[331518015,1720446071854,-894.69,0.00055342,120]
[331518016,1720446071951,-723.54,0.00055342,120]
[331518017,1720446072047,-530.59,0.00055342,120]
[331518018,1720446072143,-839.95,0.00055342,120]
[331518019,1720446072239,-511.1,0.00055342,120]
[331518020,1720446072336,-760.52,0.00055342,120]
[331518021,1720446072431,-866.49,0.00055342,120]
[331518022,1720446072533,-345.06568841,0.00055342,120]
[331518023,1720446072626,-893.31,0.00055342,120]
[331518024,1720446072719,-500.0,0.00055342,120]
[331518025,1720446072811,-403.16422898,0.00055342,120]
[331518026,1720446072904,-1290.88,0.00055342,120]
[331518027,1720446072998,-585.61,0.00055342,120]
[331518028,1720446073091,-574.25,0.00055342,120]
[331518029,1720446073185,-891.99,0.00055342,120]
[331518030,1720446073289,-518.21,0.00055342,120]
[331518031,1720446073402,-584.05028365,0.00055342,120]
[331518032,1720446073515,-973.06,0.00055342,120]
[331518033,1720446073614,-1101.05,0.00055342,120]
[331518034,1720446073712,-1143.52,0.00055342,120]
[331518035,1720446073808,-589.06,0.00055342,120]
[331518036,1720446073907,-729.17,0.00055342,120]
[331518037,1720446074003,-765.16,0.00055342,120]
[331518038,1720446074099,-538.46,0.00055342,120]
[331518039,1720446074199,-577.54,0.00055342,120]
[331518040,1720446074293,-987.37,0.00055342,120]
[331518041,1720446074392,-943.37,0.00055342,120]
[331518042,1720446074490,-707.5,0.00055342,120]
[331518043,1720446074590,-584.78,0.00055342,120]
[331518044,1720446074688,-558.55,0.00055342,120]
[331518045,1720446074788,-718.31,0.00055342,120]
[331518046,1720446074887,-511.83,0.00055342,120]
[331518047,1720446074986,-588.46,0.00055342,120]
[331518048,1720446075083,-725.12,0.00055342,120]
[331518049,1720446075176,-1169.96,0.00055342,120]
[331518050,1720446075272,-510.12,0.00055342,120]
[331518051,1720446075374,-691.49,0.00055342,120]
[331518052,1720446075472,-500.0,0.00055342,120]
[331518053,1720446075573,-736.89,0.00055342,120]
[331518054,1720446075673,-561.83,0.00055342,120]
[331518055,1720446075773,-386.84697696,0.00055342,120]
[331518056,1720446075873,-757.16,0.00055342,120]
[331518057,1720446076215,-519.91,0.00055342,120]
[331518058,1720446076318,-747.04,0.00055342,120]
[331518059,1720446076416,-613.38,0.00055342,30]
[331518060,1720446076512,-552.79,0.00055342,120]
[331518061,1720446076611,-591.58,0.00055342,120]
[331518062,1720446076710,-1172.19,0.00055342,120]
[331518063,1720446076805,-557.8,0.00055342,120]
[331518064,1720446076901,-1249.26,0.00055342,120]
[331518065,1720446076998,-800.07,0.00055342,120]
[331518066,1720446077094,-807.07,0.00055342,120]
[331518067,1720446077192,-967.69,0.00055342,120]
[331518068,1720446077288,-1110.78,0.00055342,120]
[331518069,1720446077387,-593.07,0.00055342,120]
[331518070,1720446077484,-666.97,0.00055342,120]
[331518071,1720446077580,-663.11,0.00055342,120]
[331518072,1720446077674,-586.75,0.00055342,120]
[331518073,1720446077771,-594.57,0.00055342,120]
[331518074,1720446077866,-731.67,0.00055342,120]
[331518075,1720446077966,-727.03,0.00055342,120]
[331518076,1720446078063,-556.36,0.00055342,120]
[331518077,1720446078161,-678.58,0.00055342,120]
[331518078,1720446078261,-507.09,0.00055342,120]
[331518079,1720446078373,-828.76,0.00055342,120]
[331518080,1720446078488,-606.11536126,0.00055342,120]
[331518081,1720446078592,-564.32,0.00055342,120]
[331518082,1720446078695,-512.95676674,0.00055342,120]
[331518083,1720446078791,-890.2,0.00055342,120]
[331518084,1720446078890,-795.04,0.00055342,120]
[331518085,1720446078994,-500.0,0.00055342,120]
[331518086,1720446079100,-788.58,0.00055342,120]
[331518087,1720446079209,-618.01,0.00055342,120]
[331518088,1720446079309,-551.18,0.00055342,120]
[331518089,1720446079409,-452.85876126,0.00055342,120]
[331518090,1720446079508,-720.18,0.00055342,120]
[331518091,1720446079614,-511.48,0.00055342,120]
[331518092,1720446079712,-500.0,0.00055342,120]
[331518093,1720446079812,-633.87,0.00055342,120]
[331518094,1720446079912,-885.43,0.00055342,120]
[331518095,1720446080013,-536.5,0.00055342,120]
[331518096,1720446080109,-739.48,0.00055342,120]
[331518097,1720446080201,-556.22,0.00055342,120]
[331518098,1720446080295,-658.89,0.00055342,120]
[331518099,1720446080392,-324.21,0.00055342,120]
[331518100,1720446080489,-1110.08,0.00055342,120]
[331518101,1720446080593,-735.58,0.00055342,120]
[331518102,1720446080694,-508.6,0.00055342,120]
[331518103,1720446080791,-761.41,0.00055342,120]
[331518104,1720446080889,-757.98,0.00055342,120]
[331518105,1720446080982,-744.56,0.00055342,120]
[331518106,1720446081072,-571.86,0.00055342,120]
[331518107,1720446081164,-820.08,0.00055342,120]
[331518108,1720446081256,-976.88,0.00055342,120]
[331518109,1720446081350,-795.49,0.00055342,120]
[331518110,1720446081443,-633.46,0.00055342,120]
[331518111,1720446081539,-1023.57,0.00055342,120]
[331518112,1720446081631,-732.16,0.00055342,120]
[331518113,1720446081726,-596.04,0.00055342,120]
[331518114,1720446081817,-584.19,0.00055342,120]
[331518115,1720446081911,-1250.0,0.00055342,120]
[331518116,1720446082007,-1319.76,0.00055342,120]
[331518117,1720446082097,-500.0,0.00055342,120]
[331518118,1720446082195,-777.23,0.00055342,120]
[331518119,1720446082289,-786.03,0.00055342,120]
[331518120,1720446082383,-993.73,0.00055342,120]
[331518121,1720446082474,-857.25,0.00055342,120]
[331518122,1720446082563,-631.99,0.00055342,120]
[331518123,1720446082652,-526.26,0.00055342,120]
[331518124,1720446082743,-834.16,0.00055342,120]
[331518125,1720446082835,-710.28,0.00055342,120]
[331518126,1720446082931,-500.0,0.00055342,120]
[331518127,1720446083025,-907.14,0.00055342,120]
[331518128,1720446083115,-903.08,0.00055342,120]
[331518129,1720446083257,-1205.65,0.00055342,120]
[331518130,1720446083368,-575.42,0.00055342,120]
[331518131,1720446083479,-524.88,0.00055342,120]
[331518132,1720446083588,-560.0,0.00055342,120]
[331518133,1720446083693,-1266.13,0.00055342,120]
[331518134,1720446083800,-1038.93,0.00055342,120]
[331518135,1720446083901,-860.22,0.00055342,120]
[331518136,1720446084008,-617.44,0.00055342,120]
[331518137,1720446084122,-1023.2,0.00055342,120]
[331518138,1720446084226,-844.36,0.00055342,120]
[331518139,1720446084331,-981.65,0.00055342,120]
[331518140,1720446084441,-1228.92,0.00055342,120]
[331518141,1720446084551,-726.85,0.00055342,120]
[331518142,1720446084656,-1221.82,0.00055342,120]
[331518143,1720446084756,-908.94,0.00055342,120]
[331518144,1720446084856,-597.71,0.00055342,120]
[331518145,1720446084963,-278.61873925,0.00055342,120]
[331518146,1720446085061,-694.82,0.00055342,120]
[331518147,1720446085158,-1246.01,0.00055342,120]
[331518148,1720446085253,-1155.33,0.00055342,120]
[331518149,1720446085353,-1101.3,0.00055342,120]
[331518150,1720446085456,-689.02,0.00055342,120]
[331518151,1720446085558,-889.1,0.00055342,120]
[331518152,1720446085655,-511.42540314,0.00055342,120]
[331518153,1720446085750,-656.56,0.00055342,120]
[331518154,1720446085845,-940.17,0.00055342,120]
[331518155,1720446085944,-1072.11,0.00055342,120]
[331518156,1720446086042,-1299.84,0.00055342,120]
[331518157,1720446086137,-869.62,0.00055342,120]
[331518158,1720446086232,-500.0,0.00055342,120]
[331518159,1720446086329,-929.28,0.00055342,120]
[331518160,1720446086423,-905.16,0.00055342,120]
[331518161,1720446086518,-500.84,0.00055342,120]
[331518162,1720446086617,-716.75,0.00055342,120]
[331518163,1720446086712,-753.1,0.00055342,120]
[331518164,1720446086807,-1023.46,0.00055342,120]
[331518165,1720446086905,-810.25,0.00055342,120]
[331518166,1720446087006,-943.0,0.00055342,120]
[331518167,1720446087102,-629.86,0.00055342,120]
[331518168,1720446087201,-1153.51,0.00055342,120]
[331518169,1720446087296,-742.91,0.00055342,120]
[331518170,1720446087398,-683.08,0.00055342,120]
[331518171,1720446087499,-869.05,0.00055342,120]
[331518172,1720446087594,-1252.26,0.00055342,120]
[331518173,1720446087688,-728.18,0.00055342,120]
[331518174,1720446087787,-1516.47,0.00055342,120]
[331518175,1720446087889,-964.36,0.00055342,120]
[331518176,1720446087998,-1626.66,0.00055342,120]
[331518177,1720446088101,-622.75,0.00055342,120]
[331518178,1720446088198,-291.9,0.00055342,120]